bitfinex/quotes_SOLUSD_20251106
["timestamp","ask_amount","ask_price","bid_price","bid_amount"]
[1762416785709,2.18755809,159.09,159.06,6.96687763]
[1762416786031,0.71,159.09,159.06,6.96687763]
[1762416786219,0.71,159.09,159.06,0.68]
[1762416786937,2.18755809,159.1,159.06,0.68]
[1762416787118,0.71,159.09,159.06,0.68]
[1762416787445,2.18755809,159.07,159.04,0.2]
[1762416787648,2.18755809,159.06,159.04,0.2]
[1762416788137,2.89755809,159.06,159.04,0.2]
[1762416789316,0.71,159.06,159.04,0.2]
[1762416789910,2.89755809,159.06,159.04,0.2]
[1762416790323,0.71,159.06,159.04,0.2]
[1762416791837,2.89755809,159.06,159.04,0.2]
[1762416792030,9.18449996,159.06,159.04,0.2]
[1762416792228,2.89755809,159.06,159.04,0.2]
[1762416792545,66.07530151,159.08,159.04,9.35522641]
[1762416792546,60.49882769,159.08,159.04,9.35522641]
[1762416792929,59.78882769,159.08,159.04,9.35522641]
[1762416793125,0.71,159.07,159.04,9.35522641]
[1762416793532,59.78882769,159.08,159.04,0.88]
[1762416793856,0.71,159.12,159.07,2.18755809]
[1762416794157,50.71,159.15,159.1,2.18755809]
[1762416794324,2.89755809,159.14,159.09,8.47322815]
[1762416794725,2.18755809,159.14,159.1,0.68]
[1762416795052,0.71,159.13,159.1,0.68]
[1762416796238,0.71,159.13,159.09,2.86755809]
[1762416797050,0.71,159.13,159.09,9.15328636]
[1762416797531,6.99420837,159.13,159.09,0.68]
[1762416797731,2.89755809,159.13,159.08,9.15358632]
[1762416798054,0.71,159.13,159.09,2.86755809]
[1762416798432,9.78882769,159.14,159.11,6.28496009]
[1762416798843,10.49882769,159.14,159.11,6.28496009]
[1762416799152,9.78882769,159.14,159.11,6.96496009]
[1762416799325,50.0,159.15,159.11,9.15251818]
[1762416799525,0.71,159.14,159.11,0.68]
[1762416800652,0.71,159.14,159.1,6.28530914]
[1762416800849,0.71,159.14,159.1,6.96530914]
[1762416801850,6.28417017,159.13,159.08,6.28605392]
[1762416802047,9.78882769,159.13,159.08,6.99605392]
[1762416802250,0.69,159.12,159.09,0.71]
[1762416802630,0.69,159.12,159.1,6.28535512]
[1762416803634,0.69,159.12,159.09,2.89755809]
[1762416804226,0.69,159.12,159.09,9.18330663]
[1762416804426,0.69,159.12,159.09,6.99574854]
[1762416804856,0.69,159.12,159.09,0.71]
[1762416805066,0.69,159.12,159.09,6.99564667]
[1762416806829,50.69,159.14,159.1,0.71]
[1762416807030,0.69,159.13,159.1,0.71]
[1762416807252,50.0,159.14,159.1,2.89755809]
[1762416807653,50.69,159.14,159.11,0.71]
[1762416807961,10.47882769,159.16,159.11,2.89755809]
[1762416808153,0.69,159.15,159.11,2.89755809]
[1762416808352,0.69,159.15,159.12,0.71]
[1762416809334,10.47882769,159.16,159.12,6.99420625]
[1762416809536,9.78882769,159.16,159.12,6.99420625]
[1762416809860,0.69,159.15,159.1,2.18755809]
[1762416810064,0.69,159.15,159.12,0.71]
[1762416810461,19.4901721,159.16,159.12,0.71]
[1762416810760,20.1801721,159.16,159.12,0.71]
[1762416810934,10.47882769,159.16,159.12,0.71]
[1762416811363,10.47882769,159.16,159.12,6.99432164]
[1762416812350,10.47882769,159.16,159.13,0.71]
[1762416812750,0.69,159.19,159.15,3.41833447]
[1762416812949,0.69,159.19,159.14,3.41833447]
[1762416813149,0.69,159.19,159.15,0.71]
[1762416813363,0.69,159.19,159.16,6.28298567]
[1762416813551,0.69,159.19,159.14,3.41833447]
[1762416813938,0.69,159.19,159.15,3.41833447]
[1762416814158,0.69,159.19,159.14,3.41833447]
[1762416815348,0.69,159.19,159.15,3.41833447]
[1762416815657,0.69,159.19,159.14,19.80736515]
[1762416815859,0.69,159.19,159.14,4.09833447]
[1762416816170,10.47882769,159.2,159.15,4.09833447]
[1762416816464,10.47882769,159.2,159.16,3.41833447]
[1762416816858,0.69,159.19,159.15,4.09833447]
[1762416817863,19.44349325,159.21,159.17,3.41833447]
[1762416818065,19.44349325,159.21,159.16,26.08878432]
[1762416818243,0.69,159.2,159.16,26.08878432]
[1762416819553,1e-08,159.21,159.17,4.09833447]
[1762416819753,1e-08,159.21,159.18,9.70053072]
[1762416820053,1e-08,159.21,159.19,3.41833447]
[1762416820263,1e-08,159.21,159.18,10.38053072]
[1762416820469,0.69000001,159.21,159.18,6.28219625]
[1762416821168,3.41833447,159.19,159.15,6.28326485]
[1762416821344,3.41833447,159.18,159.14,6.2837713]
[1762416821862,0.69,159.17,159.12,46.68571402]
[1762416822048,0.69,159.17,159.12,43.26737955]
[1762416822373,0.69,159.17,159.12,27.55618311]
[1762416822553,10.47882769,159.2,159.14,3.41833447]
[1762416822869,0.69,159.19,159.15,3.41833447]
[1762416823843,1e-08,159.21,159.16,9.70132014]
[1762416824038,0.69,159.2,159.16,6.28298567]
[1762416824474,0.69,159.2,159.16,9.70132014]
[1762416824647,0.69,159.2,159.17,3.41833447]
[1762416824842,1e-08,159.21,159.17,3.41833447]
[1762416825043,0.69000001,159.21,159.17,3.41833447]
[1762416825869,0.69000001,159.21,159.18,6.28219625]
[1762416826059,0.69000001,159.21,159.18,9.70053072]
[1762416826571,1e-08,159.21,159.18,9.70053072]
[1762416826766,1e-08,159.21,159.2,3.41833447]
[1762416827250,1e-08,159.21,159.19,3.41833447]
[1762416827678,0.69000001,159.21,159.18,9.70053072]
[1762416827848,1e-08,159.21,159.18,9.70053072]
[1762416828246,1e-08,159.21,159.19,3.41833447]
[1762416828649,1e-08,159.21,159.18,6.28219625]
[1762416828848,1e-08,159.21,159.18,9.70053072]
[1762416829256,1e-08,159.21,159.19,3.41833447]
[1762416829880,1e-08,159.21,159.2,4.09833447]
[1762416830054,1e-08,159.21,159.2,3.41833447]
[1762416830255,1e-08,159.21,159.2,9.6997415]
[1762416830451,1e-08,159.21,159.2,10.3797415]
[1762416831374,1e-08,159.21,159.2,9.6997415]
[1762416831564,1e-08,159.21,159.2,6.28140703]
[1762416831877,1e-08,159.21,159.2,9.6997415]
[1762416832271,1e-08,159.21,159.2,6.28140703]
[1762416832654,1e-08,159.21,159.2,10.3597415]
[1762416835281,1e-08,159.21,159.2,6.94140703]
[1762416835483,1e-08,159.21,159.2,10.3597415]
[1762416835778,1e-08,159.21,159.2,40.87807597]
[1762416835979,1e-08,159.21,159.2,39.97681037]
[1762416836289,1e-08,159.21,159.2,37.4597415]
[1762416838378,1e-08,159.21,159.2,33.38140703]
[1762416839181,0.66000001,159.21,159.2,33.38140703]
[1762416839375,1e-08,159.21,159.2,33.38140703]
[1762416839576,0.66000001,159.21,159.2,33.38140703]
[1762416840371,1e-08,159.21,159.2,33.38140703]
[1762416840565,1e-08,159.21,159.18,6.28193958]
[1762416840566,4.07833448,159.21,159.18,6.28193958]
[1762416840766,0.66,159.2,159.18,6.28193958]
[1762416840967,0.66,159.2,159.17,6.28226115]
[1762416841173,0.66,159.2,159.15,53.54590352]
[1762416841174,3.41833447,159.18,159.14,6.28377529]
[1762416841580,0.66,159.17,159.14,21.99321352]
[1762416841783,4.07833447,159.2,159.14,25.41154799]
[1762416842082,4.07833447,159.2,159.15,3.41833447]
[1762416842288,0.66,159.19,159.15,3.41833447]
[1762416842786,0.66,159.19,159.16,6.28298567]
[1762416850566,0.66000001,159.21,159.17,4.07833447]
[1762416850774,0.66000001,159.21,159.18,3.41833447]
[1762416851397,0.66000001,159.21,159.17,4.07833447]
[1762416851581,0.66000001,159.21,159.17,3.41833447]
[1762416851882,0.66000001,159.21,159.18,6.28219625]
[1762416852596,0.66000001,159.21,159.18,9.70053072]
[1762416852893,0.66000001,159.21,159.18,25.40602135]
[1762416853279,1e-08,159.21,159.18,26.06602135]
[1762416853482,0.66000001,159.21,159.18,26.06602135]
[1762416853676,0.66000001,159.21,159.18,25.40602135]
[1762416855386,0.66000001,159.21,159.18,26.06602135]
[1762416855901,0.66000001,159.21,159.18,22.64768688]
[1762416856211,0.66000001,159.21,159.18,6.28219625]
[1762416856615,4.07833448,159.21,159.18,6.28219625]
[1762416857021,0.66,159.2,159.18,6.28219625]
[1762416857535,0.66,159.2,159.17,33.38246086]
[1762416858329,0.66,159.2,159.17,6.28246086]
[1762416858538,10.359742,159.2,159.15,6.283298]
[1762416858716,4.07833447,159.19,159.15,6.283298]
[1762416859105,0.66,159.18,159.14,6.28349094]
[1762416859830,4.07833447,159.18,159.14,6.28349094]
[1762416860033,1e-08,159.21,159.14,25.41126364]
[1762416860253,0.66,159.2,159.15,3.41833447]
[1762416861039,0.66,159.2,159.16,3.41833447]
[1762416862038,0.66,159.2,159.17,9.70092541]
[1762416862232,0.66000001,159.21,159.18,3.41833447]
[1762416862539,0.66,159.2,159.18,3.41833447]
[1762416862738,0.66,159.2,159.15,0.67]
[1762416863041,0.66,159.2,159.16,3.41833447]
[1762416863415,0.66,159.2,159.18,3.41833447]
[1762416863637,0.66,159.2,159.17,3.41833447]
[1762416864016,0.66,159.2,159.17,9.70067648]
[1762416864932,0.66,159.2,159.17,6.28234201]
[1762416865734,0.66,159.2,159.15,6.28304944]
[1762416865943,3.41833447,159.19,159.15,6.28304944]
[1762416866332,0.66,159.18,159.15,6.28304944]
[1762416867221,0.66,159.18,159.14,9.70205474]
[1762416867548,4.07833447,159.18,159.13,9.70237253]
[1762416867932,0.66,159.17,159.13,9.70237253]
[1762416868639,0.66,159.17,159.13,3.41833447]
[1762416868844,10.36092749,159.17,159.12,6.28446241]
[1762416869029,0.66,159.17,159.12,9.70279688]
[1762416869342,0.66,159.16,159.12,10.37279688]
[1762416869546,0.66,159.18,159.14,3.41833447]
[1762416869715,0.66,159.19,159.16,3.41833447]
[1762416870547,0.66,159.19,159.15,9.70145186]
[1762416870734,0.66,159.19,159.16,3.41833447]
[1762416870935,0.66,159.19,159.15,9.70145186]
[1762416872449,0.66,159.19,159.15,2.18646948]
[1762416872763,0.66000001,159.21,159.18,2.18646948]
[1762416872942,0.66000001,159.21,159.19,2.18646948]
[1762416873339,0.66000001,159.21,159.17,2.18646948]
[1762416873659,0.66000001,159.21,159.16,2.18646948]
[1762416874366,0.66000001,159.21,159.17,6.28259094]
[1762416874934,0.66000001,159.21,159.17,8.46906042]
[1762416875257,0.66000001,159.21,159.17,6.28259094]
[1762416875457,0.66000001,159.21,159.17,8.46906042]
[1762416877148,0.66000001,159.21,159.16,8.46945515]
[1762416878974,0.66000001,159.21,159.16,24.85691933]
[1762416879675,0.66000001,159.21,159.2,2.18646948]
[1762416879676,1e-08,159.21,159.2,2.18646948]
[1762416879845,1e-08,159.21,159.2,23.45846948]
[1762416880964,1e-08,159.21,159.2,29.73987651]
[1762416881960,1e-08,159.21,159.2,29.05987651]
[1762416885367,1e-08,159.21,159.2,6.28140703]
[1762416885850,0.68000001,159.21,159.2,6.28140703]
[1762416886862,0.68000001,159.21,159.19,6.28180162]
[1762416887264,0.68000001,159.21,159.19,8.4682711]
[1762416890169,1e-08,159.21,159.19,8.4682711]
[1762416890581,0.68000001,159.21,159.19,8.4682711]
[1762416890966,1e-08,159.21,159.19,6.28180162]
[1762416891578,0.68000001,159.21,159.19,6.28180162]
[1762416892976,0.68000001,159.21,159.19,8.4682711]
[1762416893358,1e-08,159.21,159.19,8.4682711]
[1762416893560,1e-08,159.21,159.2,2.18646948]
[1762416893858,1e-08,159.21,159.19,9.1482711]
[1762416894075,1e-08,159.21,159.19,8.4682711]
[1762416895377,0.72000001,159.21,159.19,8.4682711]
[1762416895778,1e-08,159.21,159.19,8.4682711]
[1762416896378,1e-08,159.21,159.19,6.28180162]
[1762416896563,1e-08,159.21,159.19,8.4682711]
[1762416897789,1e-08,159.21,159.2,2.18646948]
[1762416898376,1e-08,159.21,159.2,2.86646948]
[1762416899269,1e-08,159.21,159.2,9.14787651]
[1762416899891,1e-08,159.21,159.2,8.46787651]
[1762416900594,1e-08,159.21,159.2,9.14787651]
[1762416901974,1e-08,159.21,159.2,11.33434599]
[1762416902179,1e-08,159.21,159.2,39.06248669]
[1762416902599,1e-08,159.21,159.2,41.57955556]
[1762416902778,1e-08,159.21,159.2,62.17155556]
[1762416902978,1e-08,159.24,159.23,20.592]
[1762416903178,1e-08,159.26,159.23,57.80649183]
[1762416903476,0.2,159.33,159.23,57.80649183]
[1762416903477,0.2,159.33,159.27,20.592]
[1762416903694,1e-08,159.31,159.3,22.77846948]
[1762416903904,1e-08,159.31,159.3,36.35593338]
[1762416904207,1e-08,159.31,159.3,34.8494639]
[1762416904378,1e-08,159.31,159.3,37.03593338]
[1762416905880,1e-08,159.31,159.3,38.87141934]
[1762416906086,1e-08,159.31,159.3,37.03593338]
[1762416906391,1e-08,159.31,159.3,36.35593338]
[1762416906590,1e-08,159.31,159.3,37.03593338]
[1762416907198,1e-08,159.31,159.3,36.35593338]
[1762416907905,1e-08,159.31,159.3,29.05593338]
[1762416908481,1e-08,159.31,159.3,26.8694639]
[1762416908688,0.72000001,159.31,159.3,29.05593338]
[1762416909012,1e-08,159.31,159.3,29.05593338]
[1762416911382,1e-08,159.31,159.3,29.73593338]
[1762416911581,1e-08,159.31,159.3,30.36367977]
[1762416912909,0.2,159.35,159.3,29.68367977]
[1762416913111,0.2,159.35,159.34,22.77846948]
[1762416913306,0.2,159.35,159.34,57.17846948]
[1762416914193,0.2,159.35,159.34,64.13435751]
[1762416914394,0.1,159.36,159.34,66.32082699]
[1762416914584,0.1,159.36,159.35,2.86646948]
[1762416915209,0.1,159.36,159.35,0.68]
[1762416915399,0.1,159.36,159.35,2.86646948]
[1762416915984,0.1,159.37,159.36,20.592]
[1762416916214,0.1,159.37,159.36,66.32003936]
[1762416918116,0.1,159.37,159.36,72.8794478]
[1762416918517,0.1,159.37,159.36,72.1994478]
[1762416919014,0.1,159.37,159.36,53.9671004]
[1762416919313,0.1,159.37,159.36,63.45356988]
[1762416920713,0.1,159.37,159.36,53.9671004]
[1762416920905,0.82,159.37,159.32,6.27667587]
[1762416921110,0.82,159.37,159.35,20.592]
[1762416921316,0.82,159.37,159.35,22.77846948]
[1762416921622,0.82,159.37,159.35,20.592]
[1762416922403,0.82,159.37,159.33,2.18646948]
[1762416922605,0.82,159.37,159.34,6.27588803]
[1762416923019,0.82,159.37,159.32,26.86865966]
[1762416923225,0.82,159.37,159.32,29.05512914]
[1762416923533,0.82,159.37,159.34,2.18646948]
[1762416923699,0.82,159.37,159.36,2.18646948]
[1762416924022,0.1,159.37,159.36,2.18646948]
[1762416924225,0.81,159.37,159.36,2.18646948]
[1762416924818,0.81,159.37,159.36,8.46156988]
[1762416925011,0.81,159.37,159.35,20.592]
[1762416925213,0.81,159.37,159.35,22.77846948]
[1762416925525,0.81,159.37,159.35,8.46191732]
[1762416926233,0.81,159.37,159.36,2.18646948]
[1762416927097,0.81,159.37,159.36,8.46156988]
[1762416927303,0.81,159.37,159.35,8.46177401]
[1762416928229,0.81,159.37,159.36,2.18646948]
[1762416928639,0.1,159.37,159.36,2.18646948]
[1762416928941,0.81,159.37,159.36,2.18646948]
[1762416929140,0.81,159.37,159.36,8.46156988]
[1762416929338,0.1,159.37,159.36,8.46156988]
[1762416930219,0.1,159.37,159.36,35.56156988]
[1762416930431,0.1,159.37,159.36,36.24156988]
[1762416930939,0.1,159.37,159.36,43.54156988]
[1762416931122,0.1,159.37,159.36,42.86156988]
[1762416931442,0.1,159.37,159.36,43.54156988]
[1762416931638,0.1,159.37,159.36,40.6751004]
[1762416931942,0.1,159.37,159.36,43.54156988]
[1762416932349,0.1,159.37,159.36,44.76097846]
[1762416932709,0.1,159.37,159.36,48.16685652]
[1762416932941,0.1,159.37,159.36,21.06685652]
[1762416933137,50.0,159.46,159.36,20.38685652]
[1762416933309,50.1,159.47,159.36,20.38685652]
[1762416933310,0.1,159.47,159.44,20.592]
[1762416933509,0.1,159.47,159.46,3.40587806]
[1762416933724,0.81,159.47,159.46,3.40587806]
[1762416934835,0.81,159.47,159.46,9.67704324]
[1762416935912,0.81,159.47,159.46,6.27116518]
[1762416936236,0.81,159.47,159.46,9.67704324]
[1762416936552,0.81,159.47,159.44,20.592]
[1762416937620,0.81,159.47,159.44,26.86391708]
[1762416937851,0.81,159.47,159.42,16.97832972]
[1762416938156,0.81,159.47,159.42,9.67832972]
[1762416938319,7.08091275,159.47,159.42,9.67832972]
[1762416938840,0.71,159.46,159.42,6.27245166]
[1762416939636,6.98119658,159.46,159.41,9.67892824]
[1762416939939,3.40587806,159.43,159.39,6.27382763]
[1762416940553,0.71,159.42,159.37,9.68043744]
[1762416941236,4.11587806,159.42,159.37,9.68043744]
[1762416941647,0.71,159.41,159.37,9.68043744]
[1762416942555,4.11587806,159.41,159.36,20.592]
[1762416943059,4.11587806,159.4,159.36,26.86700293]
[1762416943439,0.71,159.39,159.36,26.86700293]
[1762416943634,0.71,159.39,159.36,6.27500293]
[1762416943854,0.71,159.39,159.34,10.68587806]
[1762416943855,10.38987382,159.39,159.34,6.27569091]
[1762416944260,0.71,159.38,159.34,6.27569091]
[1762416944556,0.71,159.38,159.31,25.37509788]
[1762416944760,0.71,159.38,159.34,3.40587806]
[1762416944935,0.71,159.4,159.37,3.40587806]
[1762416945258,0.71,159.4,159.38,3.40587806]
[1762416945632,0.71,159.4,159.39,9.67979737]
[1762416945833,0.71,159.4,159.39,6.27391931]
[1762416946054,0.71,159.4,159.39,9.67979737]
[1762416946632,0.71,159.43,159.42,20.592]
[1762416946837,0.71,159.43,159.42,23.99787806]
[1762416948839,0.71,159.43,159.42,20.592]
[1762416949038,0.71,159.43,159.42,23.99787806]
[1762416949239,0.71,159.43,159.42,9.67861673]
[1762416950870,0.71,159.43,159.42,3.40587806]
[1762416951161,0.71,159.43,159.42,9.67861673]
[1762416951865,0.71,159.46,159.42,25.36046342]
[1762416952167,0.71,159.46,159.45,3.40587806]
[1762416952353,0.71,159.46,159.45,1.22247806]
[1762416952354,0.67,159.46,159.45,1.22247806]
[1762416953351,0.67,159.46,159.45,3.40587806]
[1762416953970,0.67,159.46,159.45,9.67743654]
[1762416956165,0.67,159.46,159.44,3.40587806]
[1762416956364,0.67,159.46,159.43,6.27234522]
[1762416956671,0.67,159.46,159.44,3.40587806]
[1762416956866,0.1,159.47,159.45,3.40587806]
[1762416957187,0.77,159.47,159.46,3.40587806]
[1762416957679,0.1,159.47,159.46,3.40587806]
[1762416958274,0.1,159.47,159.46,9.67704324]
[1762416960973,0.77,159.47,159.46,9.67704324]
[1762416961661,0.77,159.47,159.44,7.28]
[1762416961662,0.77,159.47,159.44,9.67750486]
[1762416962061,0.77,159.47,159.44,3.40587806]
[1762416962482,0.77,159.47,159.45,6.27155848]
[1762416962662,0.77,159.47,159.41,27.872]
[1762416962859,0.77,159.47,159.44,3.40587806]
[1762416963266,0.77,159.47,159.42,6.27273867]
[1762416963267,3.40587806,159.46,159.42,6.27273867]
[1762416963582,0.67,159.45,159.42,6.27273867]
[1762416964093,0.67,159.45,159.4,9.67904139]
[1762416964268,4.07587806,159.45,159.35,0.08]
[1762416964468,4.07587806,159.45,159.34,7.28]
[1762416964469,3.40587806,159.41,159.36,9.68066369]
[1762416964683,3.40587806,159.41,159.34,9.68154115]
[1762416964684,3.40587806,159.4,159.34,9.68154115]
[1762416964990,4.07587806,159.4,159.34,9.68154115]
[1762416965195,0.67,159.39,159.34,3.40587806]
[1762416965415,4.07587806,159.39,159.33,3.40587806]
[1762416965909,0.67,159.38,159.34,3.40587806]
[1762416966296,0.67,159.38,159.33,7.97823793]
[1762416966493,0.67,159.38,159.34,6.27588803]
[1762416966689,8.64823793,159.38,159.34,6.27588803]
[1762416967218,0.67,159.37,159.34,6.27588803]
[1762416967389,8.64823793,159.37,159.34,6.27588803]
[1762416967592,8.64823793,159.37,159.29,36.28582823]
[1762416967795,7.97823793,159.34,159.28,7.97823793]
[1762416967994,7.97823793,159.33,159.28,6.27825213]
[1762416968208,7.97823793,159.34,159.28,6.27825213]
[1762416968411,7.97823793,159.33,159.28,6.27825213]
[1762416968590,7.97823793,159.32,159.26,7.97823793]
[1762416968923,8.64823793,159.32,159.26,7.97823793]
[1762416969152,0.67,159.31,159.27,7.97823793]
[1762416969622,0.67,159.31,159.26,14.2572007]
[1762416972333,0.67,159.31,159.27,7.97823793]
[1762416972629,0.67,159.31,159.28,7.97823793]
[1762416972935,0.67,159.31,159.27,7.97823793]
[1762416973815,0.67,159.31,159.28,7.97823793]
[1762416974212,0.67,159.31,159.27,14.25655067]
[1762416975432,0.67,159.38,159.3,7.97823793]
[1762416975614,0.67,159.39,159.35,7.97823793]
[1762416975814,0.67,159.39,159.34,7.97823793]
[1762416976133,17.76706562,159.36,159.3,7.97823793]
[1762416976334,20.592,159.31,159.28,7.97823793]
[1762416976507,20.592,159.31,159.27,7.97823793]
[1762416976707,0.67,159.3,159.27,7.97823793]
[1762416977614,0.67,159.3,159.26,6.27904056]
[1762416977829,0.67,159.29,159.27,7.97823793]
[1762416978022,0.67,159.29,159.26,29.95487989]
[1762416978926,0.67,159.29,159.27,7.97823793]
[1762416979233,0.67,159.32,159.28,7.97823793]
[1762416979611,50.0,159.38,159.31,7.97823793]
[1762416979812,0.67,159.34,159.31,7.97823793]
[1762416980038,0.67,159.34,159.3,7.97823793]
[1762416981027,0.67,159.34,159.31,14.25530779]
[1762416981335,0.67,159.34,159.29,14.25577468]
[1762416981535,8.64823793,159.34,159.29,6.27753675]
[1762416981725,14.92417135,159.34,159.29,6.27753675]
[1762416981927,0.67,159.33,159.29,6.27753675]
[1762416982732,14.92460996,159.33,159.28,6.27820336]
[1762416982937,7.97823793,159.32,159.25,15.89851888]
[1762416983243,8.65823793,159.32,159.26,7.97823793]
[1762416983550,0.68,159.31,159.26,14.25727849]
[1762416983839,0.68,159.31,159.26,29.95487989]
[1762416984028,0.68,159.31,159.27,7.97823793]
[1762416984940,0.68,159.31,159.28,6.27825213]
[1762416985144,0.68,159.31,159.28,14.25649006]
[1762416986241,0.68,159.31,159.29,7.97823793]
[1762416986656,0.68,159.33,159.3,7.97823793]
[1762416986838,0.68,159.33,159.31,6.27706986]
[1762416987142,0.68,159.36,159.32,7.97823793]
[1762416987340,0.68,159.35,159.32,7.97823793]
[1762416988248,0.68,159.37,159.34,7.97823793]
[1762416988546,0.68,159.37,159.33,7.97823793]
[1762416989151,0.68,159.37,159.32,7.97823793]
[1762416989443,7.97823793,159.33,159.28,6.27825213]
[1762416989844,0.68,159.32,159.28,6.27825213]
[1762416990049,8.65823793,159.32,159.28,6.27825213]
[1762416990342,0.68,159.32,159.28,6.27825213]
[1762416990547,0.68,159.31,159.28,6.27825213]
[1762416990848,0.68,159.31,159.28,14.25649006]
[1762416991144,0.68,159.31,159.27,7.97823793]
[1762416992450,0.68,159.31,159.27,5.68492087]
[1762416993241,0.68,159.31,159.28,6.27825213]
[1762416994245,12.6420557,159.31,159.26,27.1]
[1762416994440,5.68492087,159.27,159.25,0.2]
[1762416994641,26.27692087,159.26,159.19,6.4817278]
[1762416994837,5.68492087,159.23,159.19,6.4817278]
[1762416995039,26.27692087,159.23,159.19,0.2]
[1762416995241,5.68492087,159.21,159.19,0.2]
[1762416995447,6.36492087,159.22,159.19,0.2]
[1762416995755,0.68,159.21,159.19,0.2]
[1762416996264,0.68,159.21,159.19,6.48179427]
[1762416997560,0.68,159.21,159.19,6.48173022]
[1762416997852,21.282,159.23,159.19,22.18623427]
[1762416998157,0.69,159.22,159.19,27.87115514]
[1762416998536,0.69,159.25,159.21,5.68492087]
[1762416999345,0.69,159.25,159.2,5.68492087]
[1762416999546,0.69,159.25,159.21,6.28101249]
[1762417000252,0.69,159.25,159.22,5.68492087]
[1762417000648,20.592,159.27,159.21,6.28101249]
[1762417000649,0.69,159.27,159.23,5.68492087]
[1762417000850,0.69,159.27,159.25,5.68492087]
[1762417001057,9.78882769,159.31,159.26,5.68492087]
[1762417001269,0.69,159.29,159.25,5.68492087]
[1762417001757,0.69,159.29,159.26,6.27904056]
[1762417003245,0.69,159.29,159.26,11.96396143]
[1762417004647,0.69,159.29,159.26,27.66156283]
[1762417006864,0.69,159.29,159.23,6.28022357]
[1762417007047,0.69,159.29,159.24,5.68492087]
[1762417007859,0.69,159.29,159.25,6.27943485]
[1762417008768,20.592,159.31,159.25,27.66294284]
[1762417008954,0.69,159.3,159.27,5.68492087]
[1762417009346,0.69,159.3,159.25,21.97802197]
[1762417009548,0.69,159.3,159.27,5.68492087]
[1762417010282,0.69,159.3,159.28,11.963173]
[1762417010442,0.69,159.3,159.29,5.68492087]
[1762417010857,0.69,159.3,159.28,11.963173]
[1762417011147,0.69,159.32,159.28,27.65880333]
[1762417011979,0.69,159.32,159.31,5.68492087]
[1762417012147,0.69,159.32,159.31,6.27706986]
[1762417013376,20.592,159.35,159.31,6.27706986]
[1762417013555,0.67,159.34,159.31,6.27706986]
[1762417014051,0.67,159.34,159.31,11.96199073]
[1762417014248,0.67,159.34,159.31,6.27706986]
[1762417014778,0.67,159.34,159.31,11.96199073]
[1762417014979,0.67,159.34,159.31,27.65466538]
[1762417015557,0.67,159.34,159.31,11.96199073]
[1762417016653,0.67,159.34,159.31,27.65466538]
[1762417018315,0.67,159.34,159.32,5.68492087]
[1762417018884,0.67,159.34,159.31,21.37759552]
[1762417020487,0.67,159.34,159.31,27.65466538]
[1762417020809,39.32454962,159.38,159.33,5.68492087]
[1762417020810,21.262,159.38,159.33,5.68492087]
[1762417021104,0.67,159.38,159.34,5.68492087]
[1762417021309,9.88882769,159.41,159.35,5.68492087]
[1762417021310,0.1,159.41,159.35,5.68492087]
[1762417021622,21.262,159.39,159.35,5.68492087]
[1762417021821,21.262,159.39,159.33,5.68492087]
[1762417022106,0.67,159.38,159.34,5.68492087]
[1762417022306,50.1,159.41,159.37,5.68492087]
[1762417022503,0.1,159.5,159.37,5.68492087]
[1762417022504,0.1,159.5,159.41,5.68492087]
[1762417022706,0.67,159.46,159.4,20.592]
[1762417022880,6.35492087,159.46,159.4,20.592]
[1762417023296,0.67,159.45,159.4,26.27692087]
[1762417024313,0.67,159.45,159.4,20.592]
[1762417024600,0.67,159.45,159.41,6.27313217]
[1762417025616,5.68492087,159.44,159.4,26.86547222]
[1762417025782,0.67,159.45,159.4,26.86547222]
[1762417025979,0.67,159.44,159.4,32.55039309]
[1762417026205,0.67,159.44,159.4,48.23420739]
[1762417026514,0.67,159.46,159.43,5.68492087]